[Event "Airthings Masters MCCT Prel 2022"]
[Site "Online"]
[Date "2022.02.13"]
[Round "15.8"]
[White "Giri, Anish"]
[Black "Carlsen, Magnus"]
[Result "1/2-1/2"]
[ECO "C88"]
[WhiteElo "2772"]
[BlackElo "2865"]
[Annotator "RC"]
[PlyCount "91"]
[EventDate "2022.02.18"]
[EventType "tourn"]
[EventCountry "NET"]
[SourceTitle "playchess.com"]
[Source "ChessBase"]
[SourceQuality "1"]
[TimeControl "900+10"]

1. e4 {[%emt 0:00:00]} e5 {[%emt 0:00:00]} 2. Nf3 {[%emt 0:00:01]} Nc6 {
[%emt 0:00:01]} 3. Bb5 {[%emt 0:00:01]} a6 {[%emt 0:00:01]} 4. Ba4 {[%emt 0:00:
01]} Nf6 {[%emt 0:00:01]} 5. O-O {[%emt 0:00:02]} Be7 {[%emt 0:00:00]} 6. Re1 {
[%emt 0:00:01]} b5 {[%emt 0:00:01]} 7. Bb3 {[%emt 0:00:01]} O-O {[%emt 0:00:01]
} 8. a4 {[%emt 0:00:03]} Rb8 {[%emt 0:00:09]} 9. axb5 {[%emt 0:00:06]} axb5 {
[%emt 0:00:00]} 10. h3 {[%emt 0:00:04]} d6 {[%emt 0:00:03]} 11. d3 {[%emt 0:00:
01]} Bd7 {[%emt 0:00:55]} 12. Nc3 {[%emt 0:01:39]} Nb4 {[%emt 0:00:15]} 13. Ne2
{[%emt 0:00:11]} c5 {[%emt 0:00:01]} 14. Ng3 {[%emt 0:00:11]} Qc7 {[%emt 0:00:
19]} 15. Bd2 {[%emt 0:00:14]} Nc6 {[%emt 0:00:11]} 16. Bg5 {[%emt 0:00:45]} h6
{[%emt 0:00:29]} 17. Bxf6 {[%emt 0:00:37]} Bxf6 {[%emt 0:00:00]} 18. Nf1 {
[%emt 0:00:10]} Nd4 {[%emt 0:03:06]} 19. Nxd4 {[%emt 0:01:20]} exd4 {[%emt 0:
00:08]} 20. Bd5 {[%emt 0:00:04]} c4 {[%emt 0:00:10]} 21. b3 {[%emt 0:00:34]}
Be6 {[%emt 0:00:35]} 22. Bxe6 {[%emt 0:02:26]} fxe6 {[%emt 0:00:02]} 23. Nd2 {
[%emt 0:00:31]} c3 {[%emt 0:01:13]} 24. Nf3 {[%emt 0:00:02]} Ra8 {[%emt 0:00:
00]} 25. Qe2 {[%emt 0:00:32]} e5 {[%emt 0:00:03]} 26. g3 {[%emt 0:01:32]} Ra7 {
[%emt 0:00:02]} 27. h4 {[%emt 0:00:35]} Rfa8 {[%emt 0:00:03]} 28. Rxa7 {
[%emt 0:00:17]} Rxa7 {[%emt 0:00:01]} 29. Rd1 {[%emt 0:00:42]} Ra2 {[%emt 0:00:
04]} 30. Ne1 {[%emt 0:00:07]} Qd7 {[%emt 0:00:01]} 31. Kg2 {[%emt 0:00:10]} Kf7
{[%emt 0:00:06]} 32. Rb1 {[%emt 0:00:07]} Ke7 {[%emt 0:00:13]} 33. Qd1 {
[%emt 0:00:04]} Qa7 {[%emt 0:00:05]} 34. Qg4 {[%emt 0:00:24]} Kd8 {[%emt 0:00:
09]} 35. Qe6 {[%emt 0:00:22]} Qd7 {[%emt 0:00:03]} 36. Qg8+ {[%emt 0:00:10]}
Kc7 {[%emt 0:00:02]} 37. b4 {[%emt 0:00:05]} Ra4 {[%emt 0:00:11]} 38. Nf3 {
[%emt 0:00:07]} Kb7 {[%emt 0:00:25]} 39. Qd5+ {[%emt 0:00:59]} Qc6 {[%emt 0:00:
04]} 40. Qf7+ {[%emt 0:00:02]} Qc7 {[%emt 0:00:02]} 41. Qe6 {[%emt 0:00:26]}
Ra6 {[%emt 0:00:32]} 42. Nh2 {[%emt 0:00:36]} Qc8 {[%emt 0:00:02]} 43. Qf7+ {
[%emt 0:00:04]} Qc7 {[%emt 0:00:01]} 44. Qe6 {[%emt 0:00:48]} Qc8 {[%emt 0:00:
02]} 45. Qf7+ {[%emt 0:00:17]} Qc7 {[%emt 0:00:01]} 46. Qe6 {[%emt 0:00:19]}
1/2-1/2